bitfinex/quotes_BTCUSD_20240719
["timestamp","ask_amount","ask_price","bid_price","bid_amount"]
[1721418100967,0.0816,67153.0,67142.0,1.028938]
[1721418101206,0.0816,67153.0,67135.0,0.297904]
[1721418101449,0.0816,67153.0,67138.0,0.148945]
[1721418101691,0.0816,67153.0,67139.0,0.10048225]
[1721418101942,0.0816,67153.0,67139.0,0.8]
[1721418102184,0.0816,67153.0,67136.0,0.297899]
[1721418102185,0.12751203,67152.0,67136.0,0.14895]
[1721418102427,0.12751203,67152.0,67132.0,0.29792]
[1721418102428,0.10623676,67151.0,67132.0,0.29792]
[1721418102665,0.06181203,67150.0,67136.0,0.14895]
[1721418102895,0.11012473,67152.0,67136.0,0.14895]
[1721418102896,0.0657,67152.0,67136.0,0.15434957]
[1721418103147,0.0657,67152.0,67137.0,0.148948]
[1721418103148,0.06181513,67151.0,67137.0,0.148948]
[1721418103382,0.06181513,67151.0,67138.0,0.09762854]
[1721418103641,0.0657,67152.0,67145.0,0.297858]
[1721418103913,0.0816,67153.0,67147.0,0.07717479]
[1721418104148,0.0657,67159.0,67154.0,0.297822]
[1721418104397,0.00084,67162.0,67161.0,0.148895]
[1721418104662,0.00084,67162.0,67161.0,1.29966347]
[1721418104906,0.00084,67162.0,67161.0,0.44966347]
[1721418105146,0.00084,67162.0,67160.0,0.148897]
[1721418106654,0.00084,67162.0,67160.0,0.148898]
[1721418107190,0.00084,67162.0,67159.0,0.148899]
[1721418107470,0.00084,67162.0,67160.0,0.148896]
[1721418107978,0.00084,67162.0,67146.0,0.05]
[1721418107979,0.07717479,67161.0,67140.0,0.0651]
[1721418108219,0.07717479,67161.0,67144.0,0.46304871]
[1721418108533,0.07717479,67161.0,67148.0,0.148924]
[1721418108726,0.00084,67162.0,67147.0,0.148926]
[1721418108961,0.00084,67162.0,67147.0,0.968926]
[1721418109200,0.00084,67162.0,67147.0,0.82]
[1721418109451,0.0806,67161.0,67147.0,0.77611622]
[1721418110029,0.0806,67161.0,67147.0,0.02611622]
[1721418110309,0.0806,67161.0,67147.0,0.84]
[1721418110568,0.0804208,67161.0,67147.0,0.84]
[1721418110841,0.00084,67162.0,67153.0,0.07717479]
[1721418111144,0.00084,67162.0,67160.0,0.148898]
[1721418111427,0.00084,67162.0,67160.0,0.0148898]
[1721418111939,0.00084,67162.0,67161.0,0.148895]
[1721418113242,0.00084,67162.0,67160.0,0.148898]
[1721418113454,0.00084,67162.0,67160.0,0.87438174]
[1721418113720,0.00084,67162.0,67161.0,0.90183616]
[1721418113894,0.00084,67162.0,67161.0,2.15397673]
[1721418114092,0.00084,67162.0,67161.0,1.99962716]
[1721418115777,0.00084,67162.0,67161.0,2.29741816]
[1721418116417,0.00084,67162.0,67161.0,1.49741816]
[1721418116836,0.00084,67162.0,67161.0,2.20741816]
[1721418116990,0.00084,67162.0,67161.0,2.36176773]
[1721418117587,0.00084,67162.0,67154.0,0.297821]
[1721418117818,0.00084,67162.0,67161.0,0.148895]
[1721418118191,0.00084,67162.0,67161.0,0.446686]
[1721418119257,0.00064,67162.0,67161.0,0.446686]
[1721418119426,0.00064,67162.0,67161.0,0.5509151]
[1721418120149,0.00064,67162.0,67161.0,1.00308784]
[1721418121122,0.00064,67162.0,67161.0,0.89885874]
[1721418122724,0.00064,67162.0,67161.0,0.60106774]
[1721418123566,0.00064,67162.0,67161.0,0.89885874]
[1721418123844,0.00064,67162.0,67161.0,1.72885874]
[1721418124054,0.00064,67162.0,67161.0,2.02664974]
[1721418124247,0.00064,67162.0,67161.0,2.13299544]
[1721418124897,0.00064,67162.0,67161.0,1.83520444]
[1721418125330,0.00064,67162.0,67161.0,2.13299544]
[1721418125529,0.00064,67162.0,67161.0,2.13314544]
[1721418127726,0.00064,67162.0,67161.0,2.02679974]
[1721418128365,0.00064,67162.0,67161.0,1.72900874]
[1721418128578,0.00064,67162.0,67161.0,1.43121774]
[1721418129239,0.00064,67162.0,67161.0,1.72900874]
[1721418129437,0.08902797,67187.0,67169.0,0.07717479]
[1721418129636,0.25587329,67186.0,67170.0,0.00297718]
[1721418129841,0.248823,67194.0,67162.0,0.6836921]
[1721418129842,0.06179393,67185.0,67162.0,0.3859061]
[1721418130065,0.06179393,67184.0,67163.0,0.25358677]
[1721418130268,0.06179393,67183.0,67169.0,0.148877]
[1721418130465,0.06179393,67182.0,67170.0,0.0474579]
[1721418130759,0.06179397,67181.0,67170.0,0.002794]
[1721418130961,0.06179397,67180.0,67164.0,0.151682]
[1721418131160,0.01029362,67195.0,67176.0,0.07717479]
[1721418131362,0.06677192,67193.0,67177.0,0.16015235]
[1721418131597,0.18538348,67192.0,67179.0,0.148855]
[1721418131771,0.06179449,67191.0,67180.0,0.002794]
[1721418131971,0.1,67196.0,67181.0,0.08636432]
[1721418131972,0.06179449,67190.0,67181.0,0.08636432]
[1721418132156,0.1,67198.0,67181.0,0.08636432]
[1721418132157,0.1,67198.0,67182.0,0.002794]
[1721418132361,0.18534144,67197.0,67182.0,0.08129878]
[1721418132648,0.1445,67195.0,67182.0,0.002794]
[1721418132852,0.28534144,67194.0,67179.0,0.002794]
[1721418133061,0.06178048,67193.0,67179.0,0.002794]
[1721418133496,0.06178048,67193.0,67171.0,0.297743]
[1721418133497,0.00372069,67192.0,67178.0,0.002794]
[1721418133740,0.00372069,67192.0,67189.0,0.07717479]
[1721418133948,0.694,67196.0,67189.0,0.07717479]
[1721418134183,0.00744,67198.0,67191.0,0.148827]
[1721418134381,0.00744,67198.0,67192.0,0.002794]
[1721418134577,0.00744,67198.0,67189.0,0.148832]
[1721418134781,0.00744,67198.0,67190.0,0.002794]
[1721418134985,0.00744,67198.0,67190.0,0.148831]
[1721418135192,0.0034119,67198.0,67191.0,0.002794]
[1721418135599,0.7395,67205.0,67195.0,0.148819]
[1721418135600,0.1197819,67205.0,67195.0,0.148819]
[1721418135810,0.694,67203.0,67197.0,0.29763]
[1721418136015,0.0803,67207.0,67196.0,0.0449257]
[1721418136189,0.0617712,67205.0,67199.0,0.148811]
[1721418136410,0.0617712,67205.0,67200.0,0.002794]
[1721418136591,0.0617712,67205.0,67201.0,0.04941567]
[1721418136817,0.0617712,67205.0,67202.0,0.002794]
[1721418137032,0.0617712,67205.0,67195.0,0.15438174]
[1721418137033,0.1378,67203.0,67162.0,0.04401065]
[1721418137199,0.1378,67203.0,67181.0,0.46304871]
[1721418137200,0.1378,67189.0,67181.0,0.46304871]
[1721418137408,0.2716,67182.0,67164.0,0.46304871]
[1721418137618,0.06177099,67181.0,67164.0,0.46304871]
[1721418137824,0.06177099,67181.0,67165.0,0.06795379]
[1721418138045,0.06177099,67181.0,67166.0,0.00297735]
[1721418138247,0.12359567,67180.0,67166.0,0.00297735]
[1721418138414,0.06177099,67179.0,67166.0,0.00297735]
[1721418138616,0.06177099,67179.0,67161.0,0.149045]
[1721418138817,0.06177099,67178.0,67162.0,0.08227498]
[1721418139052,0.06177099,67177.0,67163.0,0.00297736]
[1721418139253,0.06177099,67176.0,67164.0,0.148888]
[1721418139430,0.06177099,67175.0,67165.0,0.05567518]
[1721418139634,0.06177099,67174.0,67165.0,0.05567518]
[1721418139837,0.2716,67182.0,67166.0,0.05025062]
[1721418140088,0.0637,67180.0,67161.0,0.00015]
[1721418140212,0.06179769,67179.0,67161.0,0.00312729]
[1721418140777,0.06179769,67179.0,67161.0,0.15202229]
[1721418141015,0.06179769,67179.0,67163.0,0.297779]
[1721418141213,0.06179769,67179.0,67165.0,0.148886]
[1721418141487,0.06179769,67179.0,67161.0,0.29794]
[1721418141488,0.06179769,67179.0,67161.0,0.00015]
[1721418141804,0.0816,67178.0,67161.0,0.00015]
[1721418142002,0.06179769,67177.0,67161.0,0.00015]
[1721418142548,0.16179769,67177.0,67161.0,0.00015]
[1721418142785,0.07717479,67174.0,67161.0,0.00015]
[1721418142986,0.0604,67169.0,67161.0,0.00015]
[1721418143187,0.18913798,67168.0,67161.0,0.00015]
[1721418143434,0.22361993,67167.0,67161.0,0.00015]
[1721418143653,0.18542989,67166.0,67161.0,0.00015]
[1721418143803,0.1,67167.0,67161.0,0.00015]
[1721418143804,0.06180996,67165.0,67161.0,0.00015]
[1721418144148,0.06180996,67164.0,67161.0,0.00015]
[1721418144357,0.06180996,67163.0,67161.0,0.00015]
[1721418144570,0.1,67168.0,67161.0,0.00015]
[1721418144779,0.06180776,67167.0,67161.0,0.00015]
[1721418144983,0.06180776,67166.0,67161.0,0.00015]
[1721418145188,0.0604,67169.0,67161.0,0.00015]
[1721418145390,0.0604,67169.0,67161.0,0.015148]
[1721418145391,0.06180389,67168.0,67161.0,0.015148]
[1721418145599,0.06180389,67168.0,67161.0,0.00015]
[1721418146023,0.06180565,67167.0,67161.0,0.00015]
[1721418146235,0.06180565,67166.0,67161.0,0.00015]
[1721418146441,0.06180565,67165.0,67161.0,0.00015]
[1721418146642,0.06180565,67164.0,67161.0,0.00015]
[1721418146846,0.06180565,67163.0,67161.0,0.00015]
[1721418147058,0.07094643,67169.0,67161.0,0.00015]
[1721418147259,0.06180961,67168.0,67161.0,0.00015]
[1721418148100,0.07094643,67169.0,67161.0,0.00015]
[1721418148301,0.06180953,67168.0,67161.0,0.00015]
[1721418149064,0.06180952,67167.0,67161.0,0.00312772]
[1721418149268,0.01054643,67169.0,67161.0,0.00015]
[1721418149468,0.1,67170.0,67161.0,0.00312748]
[1721418149740,0.694,67171.0,67162.0,0.01529555]
[1721418149869,0.694,67171.0,67163.0,0.1573591]
[1721418150075,0.0806,67183.0,67172.0,0.148871]
[1721418150288,0.0806,67183.0,67173.0,0.00297691]
[1721418150289,0.06179132,67182.0,67173.0,0.00297691]
[1721418150568,0.04449642,67187.0,67173.0,0.00297691]
[1721418150778,0.10629031,67186.0,67173.0,0.00297691]
[1721418150952,0.04449642,67184.0,67166.0,0.0029769]
[1721418151183,0.10629031,67183.0,67167.0,0.25013234]
[1721418151392,0.10629031,67182.0,67167.0,0.15438174]
[1721418151622,0.06179389,67181.0,67164.0,0.52854739]
[1721418151844,0.06179389,67181.0,67165.0,0.08264914]
[1721418152262,0.06179776,67180.0,67165.0,0.08264914]
[1721418152467,0.06179776,67179.0,67165.0,0.08264914]
[1721418152690,0.06179776,67178.0,67165.0,0.08264914]
[1721418152917,0.06179797,67177.0,67166.0,0.08374143]
[1721418153131,0.0444969,67182.0,67170.0,0.297748]
[1721418153305,0.05488602,67187.0,67171.0,0.00297692]
[1721418153448,0.05488602,67187.0,67171.0,0.22786224]
[1721418153645,0.12954535,67189.0,67171.0,0.07898924]
[1721418153646,0.0444969,67188.0,67171.0,0.07898924]
[1721418153944,0.06674535,67190.0,67177.0,0.297719]
[1721418153945,0.0444969,67190.0,67177.0,0.297719]
[1721418154234,0.0806,67191.0,67179.0,0.148855]
[1721418154432,0.0444969,67190.0,67178.0,0.03748938]
[1721418155198,0.09109844,67191.0,67178.0,0.03748938]
[1721418155377,0.0444956,67189.0,67179.0,0.04179109]
[1721418155602,0.09109844,67191.0,67179.0,0.04179109]
[1721418155826,0.04450036,67189.0,67180.0,0.0757422]
[1721418156589,0.09109844,67191.0,67180.0,0.0757422]
[1721418156786,0.01049844,67191.0,67183.0,0.148845]
[1721418157014,0.01049844,67191.0,67182.0,0.07717479]
[1721418157015,0.1,67194.0,67184.0,0.03733175]
[1721418157166,0.161,67195.0,67184.0,0.03733175]
[1721418157594,0.04450036,67199.0,67189.0,0.07717479]
[1721418157741,0.694,67203.0,67190.0,0.00297611]
[1721418157950,0.694,67203.0,67190.0,0.15180611]
[1721418158308,0.694,67203.0,67190.0,0.00297611]
[1721418158686,0.694,67203.0,67190.0,0.15180611]
[1721418158851,0.694,67203.0,67190.0,0.26386767]
[1721418160305,0.694,67203.0,67196.0,0.07717479]
[1721418160560,0.694,67203.0,67196.0,0.08015082]
[1721418160780,0.70411114,67203.0,67196.0,0.00297603]
[1721418160899,0.70411114,67203.0,67191.0,0.148828]
[1721418161103,0.70411114,67203.0,67191.0,0.27179571]
[1721418161759,0.70411114,67203.0,67190.0,0.30321174]
[1721418161920,0.002794,67202.0,67190.0,0.30321174]
[1721418162124,0.002794,67202.0,67197.0,0.07717479]
[1721418162327,0.70411114,67203.0,67198.0,0.297626]
[1721418162575,0.70411114,67203.0,67200.0,0.148808]
[1721418162923,0.70411114,67203.0,67198.0,0.15652948]
[1721418163710,0.70411114,67203.0,67200.0,0.148808]
[1721418163952,0.70411114,67203.0,67201.0,0.148807]
[1721418164383,0.70411114,67203.0,67202.0,0.15438174]
[1721418164384,0.694,67203.0,67202.0,0.15438174]
[1721418164589,0.002,67209.0,67203.0,0.148802]
[1721418164778,0.002,67209.0,67197.0,0.148815]
[1721418164779,0.01040366,67208.0,67197.0,0.148815]
[1721418165001,0.002,67209.0,67197.0,0.15438174]
[1721418165422,0.002,67209.0,67194.0,0.4753]
[1721418165423,0.01230753,67209.0,67194.0,0.4753]
[1721418165703,0.002,67209.0,67195.0,0.05269747]
[1721418166309,0.002794,67208.0,67195.0,0.05269747]
[1721418167669,0.002,67209.0,67195.0,0.05269747]
[1721418167845,0.002,67209.0,67196.0,0.11033289]
[1721418168736,0.002794,67208.0,67196.0,0.11033289]
[1721418169157,0.002,67209.0,67196.0,0.11033289]
[1721418169400,0.002,67209.0,67194.0,0.4753]
[1721418169618,0.002794,67208.0,67194.0,0.4753]
[1721418169808,0.002794,67208.0,67191.0,0.12884947]
[1721418170013,0.002794,67208.0,67192.0,0.297654]
[1721418170190,0.002794,67208.0,67193.0,0.07878685]
[1721418170390,0.002794,67208.0,67191.0,0.12884947]
[1721418170595,0.002794,67208.0,67191.0,0.07717479]
[1721418171800,0.002794,67208.0,67191.0,0.22600379]
[1721418172757,0.002794,67208.0,67191.0,0.07717479]
[1721418172960,0.0663,67207.0,67189.0,0.07717479]
[1721418173251,0.002794,67206.0,67189.0,0.07717479]
[1721418173487,0.002794,67206.0,67189.0,0.0971104]
[1721418173670,0.002794,67206.0,67189.0,0.2459434]
[1721418173875,0.002794,67206.0,67190.0,0.148831]
[1721418174487,0.002794,67206.0,67189.0,0.2459434]
[1721418174755,0.002794,67206.0,67186.0,0.4753]
[1721418174756,0.08162019,67205.0,67186.0,0.4753]
[1721418174901,0.002794,67204.0,67186.0,0.4753]
[1721418175105,0.00372071,67203.0,67186.0,0.4753]
[1721418175300,0.002794,67202.0,67186.0,0.4753]
[1721418175501,0.00372071,67201.0,67186.0,0.4753]
[1721418177077,0.00372071,67201.0,67187.0,0.10803629]
[1721418177229,0.00372071,67201.0,67187.0,0.07717479]
[1721418179748,0.00372071,67201.0,67183.0,0.05]
[1721418179951,0.0214,67186.0,67183.0,0.05]
[1721418180305,0.0214,67186.0,67183.0,0.198844]
[1721418180512,0.0214,67186.0,67185.0,0.446527]
[1721418180654,0.0214,67186.0,67185.0,1.90840209]
[1721418180873,0.0214,67186.0,67185.0,2.20608709]
[1721418181092,0.0214,67186.0,67185.0,2.58177209]
[1721418181435,0.01288241,67201.0,67185.0,0.30419009]
[1721418181655,0.00084,67216.0,67208.0,0.148791]
[1721418181868,0.00084,67216.0,67208.0,2.04008861]
[1721418182068,0.00084,67216.0,67208.0,2.33767161]
[1721418182480,0.00084,67216.0,67208.0,2.63227953]
[1721418182692,0.00084,67216.0,67208.0,2.70527953]
[1721418182843,0.00084,67216.0,67208.0,2.93383192]
[1721418183044,0.00084,67216.0,67208.0,3.14073192]
[1721418183222,0.00084,67216.0,67215.0,1.091432]
[1721418183408,0.00084,67216.0,67215.0,2.80000268]
[1721418183620,0.00837,67221.0,67220.0,1.438885]
[1721418183817,0.00837,67221.0,67220.0,2.56020424]
[1721418184024,0.00084,67235.0,67227.0,1.041246]
[1721418184222,0.00084,67235.0,67227.0,2.66190153]
[1721418184538,0.00084,67235.0,67227.0,3.0056511]
[1721418184699,0.00084,67235.0,67227.0,3.0786511]
[1721418184851,0.00084,67235.0,67229.0,1.438705]
[1721418185051,0.00084,67235.0,67234.0,0.79367]
[1721418185273,0.00084,67235.0,67234.0,2.50316253]
[1721418185959,0.00084,67235.0,67234.0,1.20537367]
[1721418187053,0.00084,67235.0,67234.0,1.97537367]
[1721418187175,0.00084,67235.0,67234.0,2.02537367]
[1721418187441,0.00084,67235.0,67234.0,2.12972324]
[1721418188174,0.00084,67235.0,67234.0,2.17972324]
[1721418188371,0.00084,67235.0,67234.0,1.35972324]
[1721418188548,0.00084,67235.0,67234.0,1.20537367]
[1721418189292,0.00084,67235.0,67234.0,2.02537367]
[1721418189595,0.00084,67235.0,67234.0,1.20537367]
[1721418190219,0.00084,67235.0,67234.0,0.90790567]
[1721418190352,0.00084,67235.0,67234.0,1.00869624]
[1721418190756,0.00084,67235.0,67234.0,0.90790567]
[1721418191329,0.00084,67235.0,67234.0,1.65790567]
[1721418191459,0.00084,67235.0,67234.0,0.90790567]
[1721418191663,0.00084,67235.0,67234.0,0.00985393]
[1721418191864,0.00084,67235.0,67234.0,0.01729393]
[1721418193503,0.00455842,67235.0,67234.0,0.01729393]
[1721418193709,0.00084,67235.0,67234.0,0.01729393]
[1721418193908,0.003634,67235.0,67234.0,0.01729393]
[1721418194634,0.00735259,67235.0,67234.0,0.01729393]
[1721418194836,0.00455859,67235.0,67234.0,0.01729393]
[1721418195625,0.15115859,67235.0,67234.0,0.01729393]
[1721418195828,0.15115859,67235.0,67222.0,0.4753]
[1721418195829,0.05,67232.0,67222.0,0.4753]
[1721418196028,0.0797,67228.0,67222.0,0.4753]
[1721418196234,0.00371914,67227.0,67222.0,0.4753]
[1721418196596,0.05,67224.0,67211.0,0.4753]
[1721418196845,0.0618,67226.0,67194.0,0.082]
[1721418196846,0.05371964,67223.0,67205.0,0.4753]
[1721418197069,0.1415,67219.0,67205.0,0.4753]
[1721418197268,0.10371973,67218.0,67205.0,0.4753]
[1721418198593,0.0618,67217.0,67205.0,0.4753]
[1721418198803,0.00372001,67216.0,67205.0,0.4753]
[1721418201175,0.0618,67217.0,67208.0,0.07717479]
[1721418202241,0.0618,67217.0,67205.0,0.4753]
[1721418202443,0.0618,67217.0,67201.0,0.07717479]
[1721418202759,0.0618,67217.0,67199.0,0.4753]
[1721418202760,0.07835267,67217.0,67199.0,0.4753]
[1721418202923,0.07835267,67217.0,67200.0,0.07777773]
[1721418203324,0.07835267,67217.0,67199.0,0.4753]
[1721418203546,0.07835267,67217.0,67193.0,0.4753]
[1721418203769,0.07835267,67217.0,67194.0,0.5402235]
[1721418203966,0.07835267,67217.0,67194.0,0.07717479]
[1721418204840,0.07835267,67217.0,67201.0,0.07717479]
[1721418206807,0.07835267,67217.0,67196.0,0.148817]
[1721418207007,0.07835267,67217.0,67192.0,0.76069871]
[1721418207008,0.07835267,67217.0,67197.0,0.03302843]
[1721418207843,0.07835267,67217.0,67196.0,0.07717479]
[1721418207957,0.07835267,67217.0,67196.0,0.22599279]
[1721418208159,0.07835267,67217.0,67197.0,0.15179199]
[1721418208561,0.07835267,67217.0,67196.0,0.22599279]
[1721418208761,0.07835267,67217.0,67197.0,0.08268505]
[1721418208962,0.07835267,67217.0,67197.0,0.23447604]
[1721418209230,0.07835267,67217.0,67197.0,0.23150005]
[1721418209439,0.07835267,67217.0,67203.0,0.07717479]
[1721418209605,0.07463293,67217.0,67211.0,0.07717479]
[1721418210025,0.07463293,67217.0,67207.0,0.148792]
[1721418210597,0.07463293,67217.0,67210.0,0.07717479]
[1721418210598,0.01283293,67217.0,67210.0,0.07717479]
[1721418210795,0.0657,67228.0,67211.0,0.23434731]
[1721418211002,0.0657,67228.0,67220.0,0.148763]
[1721418211228,0.0657,67228.0,67220.0,0.148764]
[1721418211408,0.0788738,67228.0,67220.0,0.148764]
[1721418211614,0.0788738,67228.0,67219.0,0.148766]
[1721418211814,0.0131738,67228.0,67220.0,0.23648422]
[1721418212016,0.00084,67235.0,67223.0,0.148756]
[1721418212264,0.00084,67235.0,67224.0,0.148755]
[1721418212459,0.00084,67235.0,67223.0,0.148758]
[1721418212985,0.00084,67235.0,67221.0,0.297523]
[1721418213149,0.00084,67235.0,67221.0,0.35043235]
[1721418213631,0.00084,67235.0,67221.0,0.297523]
[1721418213745,0.00066099,67235.0,67223.0,0.148758]
[1721418214363,0.00066099,67235.0,67219.0,0.297532]
[1721418214364,0.002794,67234.0,67219.0,0.148766]
[1721418214657,0.00371872,67233.0,67218.0,0.07717479]
[1721418214899,0.00371872,67233.0,67219.0,0.148765]
[1721418215069,0.00371872,67233.0,67218.0,0.10692889]
[1721418215305,0.00371872,67233.0,67218.0,0.0297541]
[1721418215513,0.00371872,67233.0,67216.0,0.148773]
[1721418215719,0.00371872,67233.0,67217.0,0.22594579]
[1721418216073,0.00371872,67233.0,67203.0,0.07717479]
[1721418216074,0.1495,67232.0,67203.0,0.07717479]
[1721418216277,0.0663,67225.0,67209.0,0.46304871]
[1721418216475,0.0775,67223.0,67199.0,0.148811]
[1721418216704,0.00371971,67222.0,67199.0,0.148811]
[1721418217081,0.00371971,67222.0,67200.0,0.148808]
[1721418217286,0.00371971,67222.0,67199.0,0.148811]
[1721418217477,0.00371971,67222.0,67201.0,0.148806]
[1721418218737,0.00371971,67222.0,67202.0,0.148804]
[1721418219083,0.00371971,67222.0,67218.0,0.000924]
[1721418220225,0.0775,67223.0,67218.0,0.000924]
[1721418221445,0.0037193,67222.0,67218.0,0.000924]
[1721418225068,0.09032772,67223.0,67218.0,0.000924]
[1721418225877,0.09404703,67223.0,67218.0,0.000924]
[1721418230372,0.20254085,67222.0,67218.0,0.000924]
[1721418230630,0.09404703,67223.0,67218.0,0.000924]
[1721418230631,0.30626046,67221.0,67218.0,0.000924]
[1721418230825,0.20254085,67220.0,67218.0,0.000924]
[1721418231035,0.30626046,67219.0,67218.0,0.000924]
[1721418232073,0.1,67219.0,67218.0,0.000924]
[1721418232299,0.00371961,67222.0,67218.0,0.000924]
[1721418232503,0.20316739,67221.0,67218.0,0.000924]
[1721418232706,0.306887,67220.0,67218.0,0.000924]
[1721418232929,0.00371961,67220.0,67218.0,0.000924]
[1721418234453,0.10967523,67219.0,67218.0,0.000924]
[1721418234651,0.20967523,67219.0,67218.0,0.000924]
[1721418235095,0.20960191,67219.0,67218.0,0.000924]
[1721418235259,0.1,67219.0,67218.0,0.000924]
[1721418235912,0.10960192,67219.0,67218.0,0.000924]
[1721418236125,0.20960192,67219.0,67218.0,0.000924]
[1721418238445,0.27625678,67219.0,67218.0,0.000924]
[1721418238656,0.27997639,67219.0,67218.0,0.000924]
[1721418239299,0.21318735,67219.0,67218.0,0.000924]
[1721418239519,0.04453716,67222.0,67218.0,0.750924]
[1721418239738,0.01282772,67223.0,67220.0,0.07717479]
[1721418239982,0.06680575,67226.0,67220.0,0.07717479]
[1721418239983,0.04453716,67226.0,67220.0,0.07717479]
[1721418240201,0.05690038,67226.0,67218.0,0.000924]
[1721418240422,0.05690038,67226.0,67218.0,0.0456501]
[1721418240662,0.05690038,67226.0,67218.0,0.000924]
[1721418240870,0.01236322,67226.0,67218.0,0.000924]
[1721418241079,0.04453767,67226.0,67218.0,0.000924]
[1721418241318,0.04453767,67225.0,67218.0,0.000924]
[1721418241726,0.297442,67240.0,67218.0,0.000924]
[1721418241727,0.04825663,67224.0,67218.0,0.000924]
[1721418242132,0.04453767,67221.0,67218.0,0.000924]
[1721418242306,0.04453767,67219.0,67218.0,0.000924]
[1721418242518,0.04453767,67220.0,67218.0,0.000924]
[1721418242718,0.04453767,67219.0,67218.0,0.000924]
[1721418243658,0.14841954,67219.0,67218.0,0.000924]
[1721418243853,0.14841954,67219.0,67198.0,0.4753]
[1721418243854,0.148779,67214.0,67198.0,0.4753]
[1721418244058,0.04455499,67207.0,67198.0,0.4753]
[1721418244299,0.04455499,67205.0,67198.0,0.4753]
[1721418245078,0.0037204,67204.0,67198.0,0.4753]
[1721418245484,0.10745499,67202.0,67198.0,0.4753]
[1721418245783,0.1,67201.0,67198.0,0.4753]
[1721418245918,0.144554,67201.0,67198.0,0.4753]
[1721418246326,0.1,67201.0,67198.0,0.4753]
[1721418246527,0.1037205,67201.0,67198.0,0.4753]
[1721418246730,0.1,67201.0,67198.0,0.4753]
[1721418247176,0.1,67201.0,67189.0,0.07717479]
[1721418247382,0.00372067,67200.0,67189.0,0.11849002]
[1721418247555,0.00372067,67200.0,67189.0,0.07717479]
[1721418247969,0.00372067,67203.0,67189.0,0.07717479]
[1721418248171,0.07910455,67205.0,67198.0,0.217]
[1721418248172,0.0122931,67205.0,67198.0,0.217]
[1721418248375,0.04454097,67213.0,67204.0,0.44297379]
[1721418248536,1.0645,67214.0,67204.0,0.29417479]
[1721418248537,1.07710587,67214.0,67204.0,0.29417479]
[1721418248740,0.01260587,67214.0,67204.0,0.29417479]
[1721418249019,0.04454097,67217.0,67204.0,0.07717479]
[1721418249296,0.04454097,67217.0,67204.0,0.14327347]
[1721418249879,0.04454097,67217.0,67204.0,0.06609868]
[1721418250614,0.04454097,67217.0,67204.0,0.21489868]
[1721418250771,0.05688786,67217.0,67204.0,0.21489868]
[1721418250972,0.05688786,67217.0,67204.0,0.1488]
[1721418251354,0.05688786,67217.0,67200.0,0.435016]
[1721418251355,0.01234689,67217.0,67208.0,0.14879]
[1721418251556,0.04733497,67218.0,67207.0,0.148793]
[1721418251758,0.04454097,67215.0,67207.0,0.148793]
[1721418251982,0.04454097,67215.0,67204.0,0.000924]
[1721418251983,0.04826049,67215.0,67204.0,0.000924]
[1721418252182,0.04454097,67214.0,67204.0,0.000924]
[1721418252401,0.00371987,67213.0,67204.0,0.000924]
[1721418253289,0.04454097,67212.0,67204.0,0.000924]
[1721418253693,0.04454009,67213.0,67204.0,0.000924]
[1721418254303,0.12644106,67218.0,67210.0,0.148786]
[1721418254304,0.05963093,67218.0,67210.0,0.148786]
[1721418254630,0.01229684,67218.0,67213.0,0.148779]
[1721418254929,0.01229684,67218.0,67204.0,0.2466371]
[1721418254930,0.0037192,67218.0,67204.0,0.217924]
[1721418255099,0.04454009,67222.0,67208.0,0.14879]
[1721418255279,0.04733409,67222.0,67208.0,0.14879]
[1721418255482,0.04733409,67222.0,67210.0,0.297573]
[1721418255483,0.04454009,67222.0,67210.0,0.297573]
[1721418255716,0.04454009,67222.0,67213.0,0.148778]
[1721418255913,0.05727221,67223.0,67213.0,0.148778]
[1721418256071,0.04454009,67223.0,67213.0,0.148778]
[1721418256741,0.04453525,67223.0,67213.0,0.148778]
[1721418257516,0.04453525,67222.0,67213.0,0.148778]
[1721418257949,0.04453525,67223.0,67217.0,0.297543]
[1721418258172,0.04453525,67229.0,67219.0,0.148766]
[1721418258407,0.04453525,67230.0,67218.0,0.148768]
[1721418258651,0.1,67230.0,67218.0,0.148768]
[1721418258872,0.14453525,67230.0,67218.0,0.148768]
[1721418259326,0.04453525,67229.0,67218.0,0.148768]
[1721418259815,0.002794,67228.0,67218.0,0.148768]
[1721418260770,0.002794,67228.0,67220.0,0.148764]
[1721418260994,0.04733187,67228.0,67219.0,0.148766]
[1721418261306,0.05724998,67231.0,67221.0,0.148761]
[1721418261502,0.04453787,67232.0,67221.0,0.148761]
[1721418262159,0.04453787,67230.0,67218.0,0.297536]
[1721418262373,0.04453787,67230.0,67217.0,0.37294]
[1721418262640,0.04453787,67230.0,67229.0,0.446235]
[1721418262842,0.01224623,67233.0,67229.0,0.29749]
[1721418263055,0.00066099,67235.0,67232.0,0.148737]
[1721418263482,0.00066099,67235.0,67231.0,0.29748]
[1721418263724,0.00066099,67235.0,67232.0,0.148738]
[1721418264433,0.00066099,67235.0,67227.0,0.297497]
[1721418264634,0.00066099,67235.0,67230.0,0.148742]
[1721418264869,0.00066099,67235.0,67232.0,0.148738]
[1721418265079,0.00066099,67235.0,67232.0,0.297476]
[1721418265346,0.00066099,67235.0,67233.0,0.148735]
[1721418265563,0.00066099,67235.0,67232.0,0.148738]
[1721418266197,0.00066099,67235.0,67231.0,0.297479]
[1721418266645,0.00066099,67235.0,67232.0,0.148737]
[1721418267508,0.00066099,67235.0,67233.0,0.148736]
[1721418269043,0.00066099,67235.0,67232.0,0.148738]
[1721418269261,0.00066099,67235.0,67231.0,0.14874]
[1721418270392,0.00066099,67235.0,67220.0,0.297527]
[1721418270691,0.00651252,67234.0,67211.0,0.0662]
[1721418270896,0.00651252,67234.0,67210.0,0.0802]
[1721418270897,0.148737,67233.0,67212.0,0.4753]
[1721418271104,0.148737,67233.0,67213.0,0.46304871]
[1721418271105,0.00651343,67232.0,67213.0,0.46304871]
[1721418271305,0.15095089,67232.0,67212.0,0.4753]
[1721418272127,0.10651343,67232.0,67212.0,0.4753]
[1721418272345,0.10651343,67232.0,67217.0,0.07717479]
[1721418272346,0.05095417,67232.0,67217.0,0.07717479]
[1721418272498,0.00651343,67232.0,67217.0,0.07717479]
[1721418272902,0.00651343,67232.0,67212.0,0.624082]